bitfinex-derivatives/quotes_ETHF0:USTF0_20240905
["timestamp","ask_amount","ask_price","bid_price","bid_amount"]
[1725520365340,0.3791,2412.5,2412.2,3.75597842]
[1725520365547,0.3791,2412.5,2412.3,0.54817842]
[1725520365748,0.3791,2412.5,2412.3,0.7413]
[1725520366043,0.3791,2412.5,2412.4,0.54802791]
[1725520366249,0.3791,2412.5,2412.3,0.7413]
[1725520366745,0.66927,2412.5,2412.3,0.7413]
[1725520367051,0.3791,2412.5,2412.3,0.7413]
[1725520367254,0.3791,2412.5,2412.3,0.3611]
[1725520367448,0.3791,2412.5,2412.2,3.2078]
[1725520369048,0.66927,2412.5,2412.2,3.2078]
[1725520369251,0.3791,2412.5,2412.2,3.2078]
[1725520369449,0.66927,2412.5,2412.2,3.2078]
[1725520369749,0.29018,2412.4,2412.2,3.2078]
[1725520369952,0.3741,2412.3,2412.2,3.2078]
[1725520370451,1.02249,2412.3,2412.2,3.2078]
[1725520370844,4.8779,2412.3,2412.2,3.2078]
[1725520371047,0.3741,2412.3,2412.2,4.1456]
[1725520371349,0.66423,2412.8,2412.2,4.98399257]
[1725520371557,1.03833,2412.8,2412.4,3.2078]
[1725520373453,0.29014,2412.7,2412.4,3.2078]
[1725520373953,1.03834,2412.8,2412.4,3.2078]
[1725520374157,0.29015,2412.7,2412.4,3.2078]
[1725520374446,0.29015,2412.6,2412.1,3.5724]
[1725520374646,0.29018,2412.4,2412.2,0.54804487]
[1725520374951,0.29017,2412.5,2412.1,3.5724]
[1725520375146,0.29018,2412.4,2412.2,0.54810326]
[1725520375359,0.3642,2412.3,2412.1,3.5724]
[1725520375547,0.3642,2412.3,2412.2,0.54821481]
[1725520376350,0.3642,2412.3,2412.1,3.2078]
[1725520380043,0.65439,2412.3,2412.1,3.2078]
[1725520380246,0.3642,2412.3,2412.1,3.2078]
[1725520381155,0.73,2412.3,2412.1,3.2078]
[1725520382955,1.02019,2412.3,2412.1,3.2078]
[1725520383148,0.73,2412.3,2412.1,3.2078]
[1725520383954,0.29016,2412.6,2412.1,3.49801]
[1725520384262,0.29016,2412.6,2412.2,0.54880285]
[1725520384453,0.29016,2412.6,2412.1,3.87381]
[1725520384650,1.04035,2412.7,2412.2,0.8390154]
[1725520384853,0.29015,2412.6,2412.3,0.3577]
[1725520385959,0.20614473,2412.5,2412.1,3.5836]
[1725520386160,1.04035,2412.7,2412.2,0.3577]
[1725520386358,0.29015,2412.6,2412.2,0.3577]
[1725520386949,0.7502,2412.7,2412.2,0.64789]
[1725520387151,4.111,2412.9,2412.4,6.0778]
[1725520387359,0.7542,2413.1,2412.6,0.29015]
[1725520387565,3.2078,2413.4,2413.0,0.2901]
[1725520387759,0.00622613,2413.5,2413.1,3.78519817]
[1725520388061,0.00622613,2413.5,2413.2,0.371]
[1725520388456,0.00622613,2413.5,2413.3,3.2078]
[1725520388662,0.00622613,2413.5,2413.4,0.54831409]
[1725520389058,0.00622613,2413.5,2413.3,3.2078]
[1725520389873,0.00622613,2413.5,2413.2,0.37722613]
[1725520394058,3.16627613,2413.5,2413.2,0.37722613]
[1725520394767,3.16627613,2413.5,2413.2,0.00622613]
[1725520394768,0.29006,2413.4,2413.2,0.00622613]
[1725520394961,3.16006,2413.4,2413.2,0.00622613]
[1725520395162,0.7856,2413.3,2413.2,0.00622613]
[1725520396359,0.3925,2413.3,2413.2,0.00622613]
[1725520396559,3.16627613,2413.5,2413.2,0.00622613]
[1725520398864,3.16627613,2413.5,2413.4,3.2078]
[1725520398865,0.00622613,2413.5,2413.4,3.2078]
[1725520399263,0.00622613,2413.5,2413.4,7.7335]
[1725520399773,0.00622613,2413.5,2413.4,3.5903]
[1725520400265,0.00622613,2413.5,2413.4,3.88036]
[1725520400461,0.00622613,2413.5,2413.4,3.5903]
[1725520400663,0.00622613,2413.5,2413.4,0.3825]
[1725520402870,0.00622613,2413.5,2413.2,0.00622613]
[1725520404171,0.00622613,2413.5,2413.2,0.29630613]
[1725520404371,0.00622613,2413.5,2413.3,3.2078]
[1725520406773,0.00622613,2413.5,2413.3,3.49787]
[1725520407069,0.00622613,2413.5,2413.4,0.3663]
[1725520407266,0.00622613,2413.5,2413.4,7.66956]
[1725520415276,0.28998,2414.1,2413.7,0.29001]
[1725520415471,0.64738,2414.1,2413.8,3.2078]
[1725520415676,0.28999,2414.0,2413.8,3.2078]
[1725520416678,0.65360613,2414.1,2413.8,3.2078]
[1725520418179,0.36362613,2414.1,2413.8,3.2078]
[1725520418382,0.29,2413.9,2413.4,3.86415]
[1725520418685,0.3789,2413.8,2413.4,3.86415]
[1725520418883,0.3626,2413.8,2413.5,0.29004]
[1725520419186,0.36362613,2414.1,2413.7,3.2078]
[1725520419187,0.65360613,2414.1,2413.7,3.2078]
[1725520419481,0.36362613,2414.1,2413.8,0.3827]
[1725520421287,0.65359613,2414.1,2413.8,0.3827]
[1725520421482,0.36362613,2414.1,2413.7,3.2078]
[1725520421781,0.29,2413.9,2413.6,3.2078]
[1725520422786,0.3668,2413.8,2413.6,3.2078]
[1725520423685,0.28999,2414.0,2413.6,3.2078]
[1725520423886,0.65759,2414.0,2413.6,3.2078]
[1725520424086,0.3676,2414.0,2413.6,3.2078]
[1725520424288,0.6697,2413.9,2413.6,3.2078]
[1725520424489,0.3797,2413.9,2413.6,3.2078]
[1725520424892,0.00622613,2414.1,2413.7,0.29001]
[1725520425189,0.7399,2414.0,2413.7,0.29001]
[1725520425685,0.7399,2414.0,2413.8,0.386]
[1725520426387,0.00622613,2414.1,2413.9,3.2078]
[1725520426587,0.00622613,2414.1,2413.9,3.5792]
[1725520427777,0.00622613,2414.1,2413.9,3.2078]
[1725520428288,0.00622613,2414.1,2413.5,3.2078]
[1725520428289,0.29001,2413.8,2413.5,3.2078]
[1725520428588,0.29,2413.9,2413.5,3.2078]
[1725520428785,0.3609,2413.8,2413.5,3.2078]
[1725520428986,0.65091,2413.8,2413.5,3.2078]
[1725520429287,0.65091,2413.8,2413.2,0.00622613]
[1725520429288,0.29007,2413.3,2413.2,0.00622613]
[1725520429590,0.29011,2413.0,2412.5,0.3844]
[1725520429894,3.16012,2412.9,2412.4,3.574]
[1725520430083,2.87,2412.9,2412.4,3.574]
[1725520430494,0.00622613,2412.9,2412.7,3.2078]
[1725520430983,0.00622613,2412.9,2412.8,4.80123]
[1725520431182,0.00622613,2412.9,2412.8,5.35066615]
[1725520432685,0.00622613,2412.9,2412.8,5.06053615]
[1725520432982,0.00622613,2412.9,2412.8,1.20586615]
[1725520433187,0.00622613,2412.9,2412.8,5.35066615]
[1725520433377,0.00622613,2412.9,2412.8,11.35066615]
[1725520435492,0.00622613,2412.9,2412.8,10.80123]
[1725520435788,0.00622613,2412.9,2412.8,5.35074573]
[1725520435985,0.00622613,2412.9,2412.8,5.35075339]
[1725520436394,0.7786,2413.5,2413.2,0.29007]
[1725520436583,0.7786,2413.5,2413.4,0.29006]
[1725520436784,0.7786,2413.5,2413.3,0.29006]
[1725520436785,0.3899,2413.5,2413.3,0.29006]
[1725520437491,0.3899,2413.5,2413.2,0.29008]
[1725520437689,0.3899,2413.5,2413.3,0.54940202]
[1725520437893,0.3899,2413.5,2413.2,0.29008]
[1725520438488,0.3899,2413.5,2413.1,3.2078]
[1725520438489,0.29006,2413.4,2413.1,3.2078]
[1725520438693,0.67226,2413.4,2413.1,3.2078]
[1725520439397,0.3822,2413.4,2413.1,3.2078]
[1725520439584,0.67227,2413.4,2413.1,3.2078]
[1725520439980,0.3822,2413.4,2413.1,3.2078]
[1725520440397,0.3822,2413.4,2413.1,3.49789]
[1725520440687,0.3822,2413.4,2413.2,0.54933496]
[1725520440888,0.3822,2413.4,2413.1,3.49788]
[1725520441091,0.3899,2413.5,2413.2,0.54933664]
[1725520441392,0.00622613,2413.6,2413.3,0.3844]
[1725520442589,0.29626613,2413.6,2413.1,3.2078]
[1725520442791,0.29005,2413.5,2413.2,0.54934251]
[1725520443089,0.29005,2413.5,2413.1,3.2078]
[1725520443292,0.3814,2413.4,2413.2,0.54936876]
[1725520443485,0.3637,2413.3,2413.1,3.2078]
[1725520445093,0.00622613,2413.6,2413.2,0.8395405]
[1725520445286,0.00622613,2413.6,2413.2,0.29008]
[1725520445690,3.16007,2413.3,2413.1,3.2078]
[1725520445991,0.7176,2413.2,2413.1,3.2078]
[1725520446191,1.1041,2413.2,2413.1,3.2078]
[1725520449196,1.39418,2413.2,2413.1,3.2078]
[1725520450100,6.22032872,2413.6,2413.1,3.2078]
[1725520450287,1.04655,2413.5,2413.1,3.2078]
[1725520450598,1.1365,2413.5,2413.1,3.49789]
[1725520450793,0.00622613,2413.6,2413.3,0.29006]
[1725520451002,0.00622613,2413.6,2413.4,3.49786]
[1725520452292,0.00622613,2413.6,2413.4,3.2078]
[1725520452498,0.00622613,2413.6,2413.4,3.49786]
[1725520452896,0.00622613,2413.6,2413.4,3.2078]
[1725520453091,0.00622613,2413.6,2413.4,3.49785]
[1725520453291,0.00622613,2413.6,2413.4,3.2078]
[1725520458006,0.00622613,2413.6,2413.4,3.49786]
[1725520459500,0.00622613,2413.6,2413.5,0.29004]
[1725520462716,0.00622613,2413.6,2413.4,3.49785]
[1725520463217,0.00622613,2413.6,2413.4,3.2078]
[1725520463508,0.29625613,2413.6,2413.4,3.2078]
[1725520463907,0.3618,2413.5,2413.4,3.2078]
[1725520464417,4.79504,2413.5,2413.4,3.2078]
[1725520464910,4.505,2413.5,2413.4,3.2078]
[1725520465430,0.3618,2413.5,2413.4,3.2078]
[1725520465715,0.3618,2413.5,2413.1,0.29009]
[1725520465916,0.3618,2413.5,2413.2,0.55023756]
[1725520466212,0.3618,2413.5,2413.1,0.29009]
[1725520466408,0.3618,2413.5,2413.2,0.55022261]
[1725520466614,0.65185,2413.5,2413.0,3.4979]
[1725520467009,0.7813,2413.4,2413.1,0.55029097]
[1725520467209,0.7813,2413.4,2413.2,0.55029097]
[1725520467406,0.7813,2413.4,2413.0,3.4979]
[1725520467607,0.7813,2413.4,2413.1,0.55040766]
[1725520467813,0.7813,2413.4,2413.2,0.55040766]
[1725520468012,0.7813,2413.4,2413.0,3.4979]
[1725520468212,0.7813,2413.4,2413.1,0.55044039]
[1725520468410,0.7813,2413.4,2413.2,0.55044039]
[1725520468706,0.7813,2413.4,2413.0,3.4979]
[1725520468903,0.7813,2413.4,2413.1,0.55052155]
[1725520469108,0.7813,2413.4,2413.2,0.55052155]
[1725520469308,0.7813,2413.4,2413.0,3.4979]
[1725520469509,1.07136,2413.4,2413.1,0.55054149]
[1725520469711,1.07136,2413.4,2413.2,0.55054149]
[1725520469911,0.29008,2413.2,2413.0,3.2078]
[1725520470214,4.144,2413.3,2412.7,0.29013]
[1725520470425,0.3567,2413.1,2412.8,0.55076359]
[1725520470618,0.3567,2413.1,2412.9,0.55076359]
[1725520470919,0.3567,2413.1,2412.7,1.03223]
[1725520471215,0.3567,2413.1,2412.8,0.55077077]
[1725520471516,0.3567,2413.1,2412.9,0.55078079]
[1725520471721,0.3567,2413.1,2412.7,0.7421]
[1725520471913,0.3567,2413.1,2412.8,0.55077642]
[1725520472114,0.3567,2413.1,2412.9,0.55077642]
[1725520472314,0.3567,2413.1,2412.7,1.03223]
[1725520472516,0.3567,2413.1,2412.8,0.84093314]
[1725520472716,0.3567,2413.1,2412.9,0.55080314]
[1725520473022,0.3567,2413.1,2412.8,0.29013]
[1725520473219,0.3567,2413.1,2412.9,0.55078339]
[1725520473417,0.3567,2413.1,2412.6,6.36794]
[1725520473614,0.29015,2412.7,2412.4,0.00622613]
[1725520473810,0.56642249,2413.1,2412.4,0.00622613]
[1725520473811,0.29016,2412.5,2412.4,0.00622613]
[1725520474122,4.30696,2412.6,2412.4,0.00622613]
[1725520474315,4.1448,2412.5,2412.4,0.00622613]
[1725520474520,4.1448,2412.5,2412.4,0.55729735]
[1725520475025,0.73132613,2413.6,2412.8,0.29013]
[1725520475026,0.29006,2413.4,2412.8,0.29013]
[1725520475217,1.1262,2413.5,2413.0,3.2078]
[1725520475415,1.1262,2413.5,2413.1,0.55061466]
[1725520475615,1.1262,2413.5,2413.2,0.55061466]
[1725520475917,1.1262,2413.5,2413.0,3.8591]
[1725520476122,1.1262,2413.5,2413.1,0.55052799]
[1725520476324,1.1262,2413.5,2413.2,0.55052799]
[1725520476626,1.41625,2413.5,2413.0,3.2078]
[1725520476820,0.29006,2413.4,2413.0,3.2078]
[1725520477130,0.29006,2413.4,2413.1,0.55070715]
[1725520477312,0.29007,2413.3,2412.9,0.3681]
[1725520477520,0.29007,2413.3,2413.0,0.55063086]
[1725520477720,0.29007,2413.3,2412.9,0.3681]
[1725520477924,3.16006,2413.4,2413.0,0.55068313]
[1725520478123,3.16006,2413.4,2413.1,0.55068313]
[1725520478324,0.29007,2413.3,2412.9,0.3681]
[1725520478627,2.87622613,2413.6,2413.1,0.29009]
[1725520478815,2.87622613,2413.6,2413.2,0.55064503]
[1725520479020,2.87622613,2413.6,2413.3,0.55064503]
[1725520479325,2.87622613,2413.6,2413.2,0.3787]
[1725520480022,3.16625613,2413.6,2413.2,0.3787]
[1725520480222,3.16625613,2413.6,2413.3,0.55061784]
[1725520480436,3.16625613,2413.6,2413.2,0.3787]
[1725520480831,2.87622613,2413.6,2413.3,0.55061877]
[1725520481127,2.87622613,2413.6,2413.2,0.3787]
[1725520481421,0.00622613,2413.6,2413.3,0.55059367]
[1725520481626,0.00622613,2413.6,2413.4,0.3644]
[1725520482428,0.00622613,2413.6,2413.2,0.3787]
[1725520482621,3.16626613,2413.6,2413.1,0.3559]
[1725520482823,3.16626613,2413.6,2413.2,0.55074551]
[1725520483225,3.16626613,2413.6,2413.1,0.3559]
[1725520483420,3.16626613,2413.6,2413.2,0.55081372]
[1725520483724,3.16626613,2413.6,2413.1,0.3559]
[1725520484124,3.16626613,2413.6,2413.2,0.55082361]
[1725520484330,3.16626613,2413.6,2413.1,0.29009]
[1725520484529,2.87622613,2413.6,2413.2,0.55083858]
[1725520484717,2.87622613,2413.6,2413.3,0.55083858]
[1725520484921,2.87622613,2413.6,2413.1,0.64599]
[1725520485125,2.87622613,2413.6,2413.2,0.29008]
[1725520485322,2.87622613,2413.6,2413.3,0.5507611]
[1725520485524,2.87622613,2413.6,2413.2,0.29008]
[1725520485825,2.87622613,2413.6,2413.3,0.55076896]
[1725520486030,2.87622613,2413.6,2413.2,0.29008]
[1725520486229,2.87622613,2413.6,2413.3,0.90956889]
[1725520486530,2.87622613,2413.6,2413.3,0.3588]
[1725520488931,3.16625613,2413.6,2413.3,0.3588]
[1725520489129,0.29005,2413.5,2413.1,0.3559]
[1725520489337,0.29005,2413.5,2413.2,0.5508014]
[1725520489525,0.29005,2413.5,2413.1,0.3559]
[1725520489720,2.87622613,2413.6,2413.0,3.2078]
[1725520489721,2.87,2413.4,2413.0,3.2078]
[1725520489922,3.16006,2413.4,2413.1,0.55082701]
[1725520490128,2.87622613,2413.6,2413.2,0.84091633]
[1725520490321,3.23332613,2413.6,2413.3,0.55079032]
[1725520490523,3.23332613,2413.6,2413.3,3.5944]
[1725520490720,0.36332613,2413.6,2413.3,3.88447]
[1725520491127,0.36332613,2413.6,2413.3,3.5944]
[1725520491430,0.36332613,2413.6,2413.3,3.88447]
[1725520491826,0.36332613,2413.6,2413.3,3.5944]
[1725520492234,0.36332613,2413.6,2413.3,3.88447]
[1725520492530,0.36332613,2413.6,2413.3,3.5944]
[1725520493437,0.36332613,2413.6,2413.3,3.88446]
[1725520493639,0.36332613,2413.6,2413.3,3.5944]
[1725520494332,0.00622613,2413.6,2413.5,0.29004]
[1725520494528,0.00622613,2413.6,2413.5,1.22251693]
[1725520498033,11.36596,2414.3,2413.5,11.8887058]
[1725520498233,1.02916,2414.3,2413.9,3.49779]
[1725520498439,0.28996,2414.2,2413.9,3.2078]
[1725520499039,0.28996,2414.2,2413.8,0.6801]
[1725520499040,0.28999,2414.0,2413.8,0.00622613]
[1725520499433,0.6733,2413.9,2413.8,0.00622613]
[1725520499743,0.3833,2413.9,2413.8,0.00622613]
[1725520499933,7.6857,2413.9,2413.8,0.00622613]
[1725520500130,13.6857,2413.9,2413.8,0.00622613]
[1725520500442,0.29006,2413.4,2413.0,3.2078]
[1725520500637,0.3833,2413.3,2413.1,0.55050913]
[1725520500939,0.3833,2413.3,2413.2,0.55053228]
[1725520501930,0.3833,2413.3,2413.0,3.21402613]
[1725520502131,0.3759,2413.2,2413.0,3.21402613]
[1725520502331,0.00622613,2413.5,2413.4,0.29006]
[1725520502535,3.6274,2414.3,2413.8,0.29]
[1725520502836,0.7574,2414.3,2413.9,0.7373]
[1725520503036,0.7574,2414.3,2413.9,1.02729]
[1725520503233,3.6274,2414.3,2413.9,1.02729]
[1725520503734,3.15993,2414.5,2413.9,1.02729]
[1725520503939,3.55103,2414.5,2413.9,1.02729]
[1725520504249,0.28994,2414.4,2413.9,1.02729]
[1725520505236,3.55103,2414.5,2413.9,1.02729]
[1725520505843,0.28994,2414.4,2413.9,0.7373]
[1725520506039,0.28995,2414.3,2413.9,0.7373]
[1725520506345,0.3802,2414.2,2413.9,0.3626]
[1725520507041,0.3802,2414.2,2413.9,0.6526]
[1725520507240,0.3601,2414.4,2414.0,0.28998]
[1725520507432,0.3601,2414.4,2414.1,3.2078]
[1725520507939,0.3601,2414.4,2414.0,0.28998]
[1725520508333,0.7713,2414.5,2414.1,3.2078]
[1725520508943,0.3937,2414.7,2414.1,6.0778]
[1725520509141,0.3937,2414.7,2414.4,3.49773]
[1725520509443,0.3937,2414.7,2414.5,0.66262]
[1725520509644,0.28984,2415.2,2414.6,0.28991]
[1725520509946,1.144,2415.1,2414.7,6.62681978]
[1725520510240,1.144,2415.1,2414.9,0.28987]
[1725520510437,1.144,2415.1,2414.8,0.28988]
[1725520510637,3.15981,2415.5,2414.8,0.28988]
[1725520510836,0.3671,2415.4,2414.8,0.28988]
[1725520511241,0.3671,2415.4,2414.7,6.0778]
[1725520511443,0.7721,2415.5,2415.1,0.28984]
[1725520511742,2.87,2415.7,2415.2,0.377]
[1725520511743,0.28979,2415.7,2415.2,0.377]
[1725520511944,1.1317,2415.5,2415.2,0.377]
[1725520512139,1.1317,2415.5,2415.1,3.2078]
[1725520512646,0.7646,2415.5,2415.2,0.28983]
[1725520512944,0.7646,2415.5,2415.2,0.377]
[1725520513443,0.7646,2415.5,2415.2,0.66684]
[1725520513644,0.7646,2415.5,2415.2,0.377]
[1725520514236,0.3862,2415.5,2415.0,0.3875]
[1725520514448,0.67601,2415.5,2415.0,3.5953]
[1725520514651,0.3862,2415.5,2415.0,3.5953]
[1725520514951,0.3939,2415.7,2415.1,0.28984]
[1725520515243,0.7641,2415.7,2415.3,3.2078]
[1725520515439,1.05388,2415.7,2415.3,3.2078]
[1725520515640,1.05388,2415.7,2414.7,6.4477]
[1725520515641,2.87,2415.5,2414.7,6.4477]
[1725520515845,3.15981,2415.5,2414.7,7.12589]
[1725520516146,2.87,2415.3,2414.7,6.836]
[1725520516350,2.87,2415.5,2414.9,0.28987]
[1725520516544,2.87,2415.5,2415.0,3.2078]
[1725520516545,3.15981,2415.5,2415.0,3.2078]
[1725520516952,2.87,2415.1,2414.7,0.3699]
[1725520517147,0.7837,2415.0,2414.7,0.3699]
[1725520517449,2.87,2414.9,2414.3,0.00621311]
[1725520517746,2.87,2414.4,2414.3,0.00621311]
[1725520518143,2.87,2414.6,2414.3,0.00621311]
[1725520518651,2.87,2414.8,2414.3,0.00621311]
[1725520518852,3.15989,2414.8,2414.3,0.00621311]
[1725520519243,2.87,2414.8,2414.3,0.00621311]
[1725520519443,3.15989,2414.8,2414.3,0.00621311]
[1725520519643,2.87,2414.8,2414.3,0.00621311]
[1725520519856,3.15989,2414.8,2414.3,0.00621311]
[1725520520052,0.28989,2414.8,2414.3,0.00621311]
[1725520520438,4.10988,2414.9,2414.3,0.00621311]
[1725520520844,0.28989,2414.8,2414.3,0.00621311]
[1725520521541,4.10988,2414.9,2414.3,0.00621311]
[1725520522347,3.82,2414.9,2414.3,0.00621311]
[1725520522547,4.10988,2414.9,2414.3,0.40041311]
[1725520523147,0.28989,2414.8,2414.3,0.40041311]
[1725520523550,4.10988,2414.9,2414.3,0.40041311]
[1725520523853,0.28991,2414.7,2414.3,0.00621311]
[1725520525052,0.28993,2414.5,2414.3,0.00621311]
[1725520525347,0.67674,2414.4,2414.3,0.00621311]
[1725520525553,1.06324,2414.4,2414.3,0.00621311]
[1725520525850,5.20484,2414.4,2414.3,0.00621311]
[1725520527343,0.28999,2414.0,2413.7,3.2078]
[1725520527550,0.7674,2413.9,2413.7,3.2078]
[1725520527950,1.0574,2413.9,2413.7,3.2078]
[1725520529147,1.0574,2413.9,2413.6,0.00621311]
[1725520529148,0.29001,2413.8,2413.6,0.00621311]
[1725520529346,0.29002,2413.7,2413.6,0.00621311]
[1725520529550,4.1432,2413.7,2412.9,3.2078]
[1725520529748,0.29008,2413.3,2412.9,3.2078]
[1725520530151,0.7504,2413.3,2412.9,3.2078]
[1725520530345,0.29009,2413.2,2412.9,3.2078]
[1725520530543,3.82,2413.1,2412.8,0.00621311]
[1725520530742,7.3518,2413.2,2412.8,0.00621311]
[1725520530743,4.11012,2412.9,2412.8,0.00621311]
[1725520531246,4.1448,2412.9,2412.8,0.00621311]
[1725520534648,4.43492,2412.9,2412.8,0.00621311]
[1725520534948,4.1448,2412.9,2412.8,0.00621311]
[1725520535150,4.2017,2413.2,2412.8,0.00621311]
[1725520535662,4.49179,2413.2,2412.8,0.00621311]
[1725520535961,4.2017,2413.2,2412.8,0.00621311]
[1725520536453,4.40626534,2413.2,2412.8,0.00621311]
[1725520536660,4.11012,2412.9,2412.8,0.00621311]
[1725520538457,14.25492,2412.9,2412.8,0.00621311]
[1725520538656,0.29016,2412.6,2412.1,3.5825]
[1725520539164,0.29018,2412.4,2412.1,3.2078]
[1725520539862,0.29018,2412.4,2412.0,0.00621311]
[1725520540054,0.29019,2412.3,2412.0,0.00621311]
[1725520540250,4.95461311,2412.5,2412.0,0.00621311]
[1725520540251,0.29018,2412.4,2412.0,0.00621311]
[1725520540653,0.29019,2412.3,2412.0,0.00621311]
[1725520540861,0.29018,2412.4,2412.0,0.00621311]
[1725520541552,0.29019,2412.3,2412.0,0.00621311]
[1725520541862,3.82,2412.2,2412.0,0.00621311]
[1725520542165,0.29021,2412.1,2412.0,0.00621311]
[1725520543858,4.11021,2412.2,2412.0,0.00621311]
[1725520544262,0.29021,2412.1,2412.0,0.00621311]
[1725520544867,4.11021,2412.2,2412.0,0.00621311]
[1725520545065,1.27571802,2412.5,2412.0,0.00621311]
[1725520545066,4.95461311,2412.5,2412.0,0.00621311]
[1725520545267,0.29018,2412.4,2412.0,0.00621311]
[1725520545465,4.95461311,2412.5,2412.0,0.00621311]
[1725520545661,0.29018,2412.4,2412.0,0.00621311]
[1725520546170,0.29019,2412.3,2412.0,0.00621311]
[1725520547461,0.2902,2412.2,2412.0,0.00621311]
[1725520548168,0.29021,2412.1,2412.0,0.00621311]
[1725520549465,0.29021,2412.1,2411.5,3.9482]
[1725520549466,0.29024,2411.9,2411.5,0.7404]
[1725520549657,4.11025,2411.9,2411.5,0.7404]
[1725520549858,0.29025,2411.8,2411.5,0.7404]
[1725520550266,0.29027,2411.7,2411.5,0.3588]
[1725520550456,0.29026,2411.8,2411.5,0.3588]
[1725520550662,0.29026,2411.7,2411.5,0.3588]
[1725520551763,0.29026,2411.7,2411.4,0.00621311]
[1725520552065,0.29026,2411.8,2411.4,0.00621311]
[1725520553662,4.86234,2411.9,2411.4,0.00621311]
[1725520554267,0.29025,2411.8,2411.4,0.00621311]
[1725520554868,4.5721,2411.9,2411.4,0.00621311]
[1725520554869,5.06494627,2411.9,2411.4,0.00621311]
[1725520555065,5.06494627,2411.9,2411.4,0.29650311]
[1725520555066,0.7521,2411.9,2411.4,0.29650311]
[1725520555257,0.3674,2411.9,2411.5,0.29028]
[1725520555461,4.111,2412.3,2411.5,0.29028]
[1725520555462,4.4738,2412.3,2411.5,7.3542]
[1725520555663,4.4738,2412.3,2411.8,3.49804]
[1725520555871,4.4738,2412.3,2411.9,0.371]
[1725520556065,8.2938,2412.3,2411.6,0.3641]
[1725520556266,0.29021,2412.2,2411.7,0.371]
[1725520556471,8.58399,2412.3,2411.7,0.371]
[1725520556671,4.111,2412.3,2411.8,3.49804]
[1725520556870,0.77461311,2412.5,2411.9,0.29024]
[1725520557771,0.77461311,2412.5,2411.8,3.49804]
[1725520558169,1.06478311,2412.5,2411.8,3.49804]
[1725520558371,0.77461311,2412.5,2411.8,3.49804]
[1725520558573,0.77461311,2412.5,2411.8,3.2078]
[1725520558968,0.77461311,2412.5,2412.1,3.49801]
[1725520558969,0.00621311,2412.5,2412.1,3.49801]
[1725520559169,0.00621311,2412.5,2412.2,0.3752]
[1725520559376,0.00621311,2412.5,2412.3,0.3825]
[1725520560168,0.00621311,2412.5,2412.3,4.5281]
[1725520560875,0.00621311,2412.5,2412.3,4.81829]
[1725520561075,0.00621311,2412.5,2412.3,4.5281]
[1725520561665,0.00621311,2412.5,2412.4,7.3534]
[1725520561870,0.00621311,2412.5,2412.4,3.2078]
[1725520562080,0.00621311,2412.5,2412.4,7.3526]
[1725520562671,0.29637311,2412.5,2412.4,3.2078]
[1725520563082,0.29018,2412.4,2411.9,3.2078]
[1725520563377,0.3928,2412.4,2411.9,3.2078]
[1725520563583,0.00621311,2412.5,2411.9,3.2078]
[1725520563769,0.00621311,2412.5,2412.2,3.2078]
[1725520563970,0.00621311,2412.5,2412.3,0.3798]
[1725520564980,0.3928,2413.1,2412.6,0.29014]
[1725520565175,0.3928,2413.1,2412.6,3.49794]
[1725520565373,7.3188,2413.3,2412.8,0.29013]
[1725520565681,7.3188,2413.3,2412.9,0.3738]
[1725520566073,0.00621311,2413.3,2412.9,3.87792311]
[1725520566585,0.00621311,2413.3,2412.9,3.58781311]
[1725520566776,0.00621311,2413.3,2412.9,3.87793311]
[1725520568982,0.00621311,2413.3,2412.9,3.58781311]
[1725520569186,0.29629311,2413.3,2412.9,3.58781311]
[1725520569378,0.2901,2413.1,2412.9,3.21401311]
[1725520569577,3.82621311,2413.3,2412.9,3.21401311]
[1725520570086,3.82,2413.1,2412.9,3.21401311]
[1725520570293,0.6459,2413.0,2412.9,0.00621311]
[1725520570489,0.29014,2412.7,2412.1,0.3795]
[1725520570676,3.82,2412.6,2412.1,0.3795]
[1725520570978,3.82,2412.6,2412.0,3.5894]
[1725520570979,0.29017,2412.5,2412.0,3.5894]
[1725520571178,0.29018,2412.4,2412.0,3.5894]
[1725520571482,0.29018,2412.4,2412.0,3.21401311]
[1725520571483,0.3625,2412.4,2412.0,3.21401311]
[1725520571785,0.3628,2412.5,2412.0,3.21401311]
[1725520572191,0.65297,2412.5,2412.0,3.21401311]
[1725520572585,3.82,2412.4,2412.0,3.21401311]
[1725520572978,0.3628,2412.5,2412.0,3.21401311]
[1725520573183,3.82,2412.6,2412.0,3.21401311]
[1725520573395,3.82,2412.6,2412.0,3.50423311]
[1725520573590,3.82,2412.6,2412.0,3.21401311]
[1725520573591,4.11015,2412.6,2412.0,3.21401311]
[1725520575594,4.11015,2412.6,2412.0,3.50423311]
[1725520576092,4.11015,2412.6,2412.0,3.21401311]
[1725520576586,0.29017,2412.5,2412.0,3.21401311]
[1725520576983,3.82,2412.6,2412.0,3.21401311]
[1725520576984,0.29018,2412.4,2412.0,3.21401311]
[1725520577181,0.29017,2412.5,2412.0,3.21401311]
[1725520578385,3.82,2412.6,2412.0,3.50423311]
[1725520578679,0.29017,2412.5,2412.0,3.21401311]
[1725520578879,3.82,2412.6,2412.1,0.29021]
[1725520579293,3.82,2412.6,2412.0,3.50423311]
[1725520579294,4.11016,2412.6,2412.0,3.50423311]
[1725520579593,0.29017,2412.5,2412.0,3.21401311]
[1725520579991,0.29017,2412.5,2412.0,3.50423311]
[1725520581094,0.29017,2412.5,2412.0,3.21401311]
[1725520581295,0.65918,2412.4,2412.0,3.21401311]
[1725520581496,0.7361,2412.4,2412.0,3.21401311]
[1725520581795,1.02628,2412.4,2412.0,3.21401311]
[1725520581992,0.7361,2412.4,2412.0,3.21401311]
[1725520582393,0.7361,2412.4,2412.0,0.00621311]
[1725520582596,0.7361,2412.4,2412.2,3.2078]
[1725520582791,0.369,2412.4,2412.2,3.2078]
[1725520582992,4.11016,2412.6,2412.2,3.2078]
[1725520583997,2.87,2412.5,2412.2,3.2078]